bitfinex-derivatives/quotes_BNBF0:USTF0_20250101
["timestamp","ask_amount","ask_price","bid_price","bid_amount"]
[1735771793095,0.89353789,707.56,707.21,1.06108637]
[1735771793289,0.89353789,707.55,707.21,1.06108637]
[1735771793489,0.89353789,707.54,707.21,1.06108637]
[1735771793694,0.89353789,707.53,707.21,1.06108637]
[1735771793895,0.89353789,707.52,707.21,1.06108637]
[1735771794191,0.89353789,707.51,707.21,1.06108637]
[1735771794495,0.89353789,707.5,707.21,1.06108637]
[1735771794694,0.89353789,707.49,707.21,1.06108637]
[1735771794894,0.89357127,707.48,707.21,1.06108637]
[1735771795095,0.89357127,707.47,707.21,1.06108637]
[1735771795294,0.89357127,707.46,707.21,1.06108637]
[1735771795495,0.8935759,707.45,707.21,1.06108637]
[1735771795695,0.8935759,707.44,707.21,1.06108637]
[1735771795995,0.8935759,707.43,707.21,1.06108637]
[1735771796194,0.8935759,707.42,707.21,1.06108637]
[1735771796397,0.8935759,707.41,707.2,1.06108637]
[1735771796591,0.8935759,707.4,707.2,1.06108637]
[1735771796795,0.8935759,707.39,707.2,1.06108637]
[1735771796991,0.699,707.61,707.2,1.06108637]
[1735771797195,0.89358769,707.6,707.2,1.06108637]
[1735771797392,0.89358769,707.59,707.21,1.06108637]
[1735771797598,0.89358769,707.58,707.21,1.06108637]
[1735771797794,0.89358769,707.57,707.21,1.06108637]
[1735771797998,0.89359554,707.56,707.21,1.06108637]
[1735771798298,0.89359554,707.55,707.21,1.06108637]
[1735771798498,0.89359554,707.54,707.21,1.06108637]
[1735771798695,0.89359554,707.53,707.21,1.06108637]
[1735771798895,0.89359554,707.52,707.21,1.06108637]
[1735771799198,0.89359554,707.51,707.21,1.06108637]
[1735771799398,0.89359554,707.5,707.21,1.06108637]
[1735771799593,0.89359554,707.49,707.21,1.06108637]
[1735771799798,0.89359554,707.48,707.21,1.06108637]
[1735771799997,0.89359554,707.47,707.26,1.06108637]
[1735771800200,0.89359554,707.46,707.26,1.06108637]
[1735771800399,0.89359554,707.45,707.26,1.06108637]
[1735771800701,0.89360574,707.44,707.26,1.06108637]
[1735771800902,0.89360574,707.43,707.26,1.06108637]
[1735771801106,0.89360574,707.42,707.25,1.06108637]
[1735771801301,0.89360574,707.41,707.25,1.06108637]
[1735771801496,0.89360574,707.4,707.25,1.06108637]
[1735771801700,0.89360574,707.39,707.25,1.06108637]
[1735771802003,0.89360574,707.38,707.25,1.06108637]
[1735771802199,0.89360574,707.37,707.25,1.06108637]
[1735771802403,0.89360574,707.36,707.25,1.06108637]
[1735771802602,0.89360574,707.35,707.25,1.06108637]
[1735771802803,0.89360574,707.34,707.25,1.06108637]
[1735771803001,0.89359638,707.33,707.25,1.06108637]
[1735771803199,0.89359638,707.32,707.25,1.06108637]
[1735771803399,0.699,707.61,707.25,1.06108637]
[1735771803706,0.699,707.61,707.24,1.06108637]
[1735771803707,0.89357275,707.6,707.24,1.06108637]
[1735771803908,0.89357275,707.59,707.24,1.06108637]
[1735771804208,0.89357275,707.58,707.24,1.06108637]
[1735771804409,0.89357275,707.57,707.24,1.06108637]
[1735771804608,0.89357275,707.56,707.24,1.06108637]
[1735771804806,0.89357275,707.55,707.24,1.06108637]
[1735771805004,0.89357275,707.54,707.24,1.06108637]
[1735771805206,0.699,707.61,707.24,1.06108637]
[1735771805406,0.89352755,707.6,707.24,1.06108637]
[1735771805601,0.89352755,707.59,707.24,1.06108637]
[1735771805808,0.89352755,707.58,707.22,1.06108637]
[1735771806109,0.89352526,707.57,707.22,1.06108637]
[1735771806307,0.89352526,707.56,707.22,1.06108637]
[1735771806509,0.89352526,707.55,707.22,1.06108637]
[1735771806709,0.89352526,707.54,707.22,1.06108637]
[1735771807010,0.89352526,707.53,707.21,1.06108637]
[1735771807207,0.89352526,707.52,707.21,1.06108637]
[1735771807406,0.89352526,707.51,707.21,1.06108637]
[1735771807603,0.89352526,707.5,707.21,1.06108637]
[1735771807804,0.89352526,707.49,707.21,1.06108637]
[1735771808007,0.89352526,707.48,707.21,1.06108637]
[1735771808207,0.89352526,707.47,707.21,1.06108637]
[1735771808409,0.89352526,707.46,707.21,1.06108637]
[1735771808606,0.89352526,707.45,707.2,1.06108637]
[1735771808810,0.89352526,707.44,707.2,1.06108637]
[1735771809010,0.89339789,707.43,707.2,1.06108637]
[1735771809206,1.59239789,707.42,707.2,1.06108637]
[1735771809411,0.89339789,707.41,707.2,1.06108637]
[1735771809606,0.89339789,707.4,707.2,1.06108637]
[1735771809812,0.89339789,707.39,707.2,1.06108637]
[1735771810112,0.89339789,707.38,707.2,1.06108637]
[1735771810305,0.89339789,707.37,707.2,1.06108637]
[1735771810503,0.89339789,707.36,707.2,1.06108637]
[1735771810705,0.89339789,707.35,707.2,1.06108637]
[1735771811011,0.89339789,707.34,707.2,1.06108637]
[1735771811209,0.89339789,707.33,707.2,1.06108637]
[1735771811406,0.89339789,707.32,707.2,1.06108637]
[1735771811609,0.89339789,707.31,707.2,1.06108637]
[1735771811814,0.699,707.42,707.2,1.06108637]
[1735771812011,0.8933275,707.41,707.2,1.06108637]
[1735771812212,0.8933275,707.4,707.2,1.06108637]
[1735771812413,0.89330426,707.39,707.19,1.06108637]
[1735771812613,0.89330426,707.38,707.19,1.06108637]
[1735771812812,0.89330426,707.37,707.19,1.06108637]
[1735771813113,0.89330426,707.36,707.19,1.06108637]
[1735771813413,0.89330426,707.35,707.2,1.06108637]
[1735771813606,0.89330426,707.34,707.2,1.06108637]
[1735771813910,0.89330426,707.33,707.2,1.06108637]
[1735771814109,0.89330426,707.32,707.2,1.06108637]
[1735771814309,0.89330426,707.31,707.2,1.06108637]
[1735771814510,0.89330426,707.31,706.67,2.16638467]
[1735771814511,0.89330426,707.3,707.17,1.06108637]
[1735771814808,0.89330426,707.29,707.17,1.06108637]
[1735771815012,0.89330426,707.28,707.17,1.06108637]
[1735771815206,0.699,707.42,707.17,1.06108637]
[1735771815409,0.89324903,707.41,707.17,1.06108637]
[1735771815609,0.89324903,707.4,707.15,1.06108637]
[1735771815807,0.89324903,707.39,707.15,1.06108637]
[1735771816111,0.89324903,707.38,707.15,1.06108637]
[1735771816312,0.89324903,707.37,707.15,1.06108637]
[1735771816513,0.89324903,707.36,707.15,1.06108637]
[1735771816708,0.89324903,707.35,707.18,1.06108637]
[1735771816912,0.89324903,707.34,707.18,1.06108637]
[1735771817110,0.89324903,707.33,707.18,1.06108637]
[1735771817312,0.89324903,707.32,707.18,1.06108637]
[1735771817607,0.89324903,707.31,707.18,1.06108637]
[1735771817813,0.699,707.42,707.18,1.06108637]
[1735771818013,0.89320968,707.41,707.18,1.06108637]
[1735771818212,0.89320968,707.4,707.18,1.06108637]
[1735771818412,0.89320968,707.39,707.18,1.06108637]
[1735771818614,0.89320968,707.38,707.18,1.06108637]
[1735771818913,0.89320968,707.37,707.18,1.06108637]
[1735771819110,0.89320968,707.36,707.18,1.06108637]
[1735771819313,0.89320968,707.35,707.18,1.06108637]
[1735771819513,0.89320968,707.34,707.18,1.06108637]
[1735771819815,0.89320968,707.33,707.18,1.06108637]
[1735771820113,0.89320968,707.32,707.18,1.06108637]
[1735771820310,0.89320968,707.31,707.18,1.06108637]
[1735771820615,0.89320968,707.3,707.17,1.06108637]
[1735771820813,0.699,707.42,707.17,1.06108637]
[1735771821008,0.89316651,707.41,707.17,1.06108637]
[1735771821213,0.89316651,707.4,707.17,1.06108637]
[1735771821513,0.89316651,707.39,707.17,1.06108637]
[1735771821707,0.89316651,707.38,707.17,1.06108637]
[1735771821913,0.89316651,707.37,707.18,1.06108637]
[1735771822112,0.89316651,707.36,707.18,1.06108637]
[1735771822313,0.89316651,707.35,707.18,1.06108637]
[1735771822513,0.89316651,707.34,707.18,1.06108637]
[1735771822714,0.89316651,707.33,707.18,1.06108637]
[1735771822908,0.699,707.42,707.18,1.06108637]
[1735771822909,0.89316651,707.32,707.18,1.06108637]
[1735771823112,0.89316651,707.32,706.98,1.06108637]
[1735771823113,0.699,707.42,707.17,1.06108637]
[1735771823313,0.8931432,707.41,707.17,1.06108637]
[1735771823514,0.8931432,707.4,707.17,1.06108637]
[1735771823815,0.699,707.42,707.17,1.06108637]
[1735771824014,0.89313695,707.41,707.17,1.06108637]
[1735771824209,0.89313695,707.4,707.2,1.06108637]
[1735771824413,0.89313695,707.39,707.2,1.06108637]
[1735771824612,0.89313695,707.38,707.2,1.06108637]
[1735771824813,0.89313695,707.37,707.2,1.06108637]
[1735771825013,0.89313695,707.36,707.2,1.06108637]
[1735771825213,0.89313695,707.35,707.2,1.06108637]
[1735771825415,0.89313695,707.34,707.2,1.06108637]
[1735771825615,0.89313695,707.33,707.2,1.06108637]
[1735771825815,0.699,707.42,707.2,1.06108637]
[1735771825816,0.89313695,707.32,707.2,1.06108637]
[1735771826017,0.89313695,707.31,707.2,1.06108637]
[1735771826315,0.89313695,707.3,707.2,1.06108637]
[1735771826512,0.89313695,707.29,707.2,1.06108637]
[1735771826713,0.699,707.42,707.2,1.06108637]
[1735771826913,0.89312306,707.41,707.2,1.06108637]
[1735771827114,0.89312306,707.4,707.2,1.06108637]
[1735771827418,0.89312306,707.39,707.2,1.06108637]
[1735771827715,0.89312306,707.38,707.2,1.06108637]
[1735771827911,0.89312306,707.37,707.2,1.06108637]
[1735771828114,0.89312306,707.36,707.2,1.06108637]
[1735771828310,0.89312306,707.35,707.2,1.06108637]
[1735771828515,0.89312306,707.34,707.2,1.06108637]
[1735771828813,0.89312306,707.33,707.2,1.06108637]
[1735771829017,0.89312306,707.32,707.2,1.06108637]
[1735771829213,0.89312306,707.31,707.2,1.06108637]
[1735771829417,0.89312306,707.3,707.2,1.06108637]
[1735771829615,0.89312306,707.29,707.2,1.06108637]
[1735771829816,1.47623913,707.8,707.2,1.06108637]
[1735771830012,0.89311104,707.79,707.19,1.06108637]
[1735771830211,0.89311104,707.78,707.19,1.06108637]
[1735771830513,1.59210588,707.77,707.19,1.06108637]
[1735771830713,0.89310588,707.76,707.19,1.06108637]
[1735771830913,0.89310588,707.75,707.19,1.06108637]
[1735771831118,0.89310588,707.74,707.19,1.06108637]
[1735771831318,0.89310588,707.73,707.19,1.06108637]
[1735771831517,0.89310588,707.72,707.19,1.06108637]
[1735771831717,0.89310588,707.71,707.19,1.06108637]
[1735771831918,0.89310588,707.7,707.2,1.06108637]
[1735771832119,0.699,707.77,707.2,1.06108637]
[1735771832320,0.89309831,707.76,707.2,1.06108637]
[1735771832614,0.89309831,707.75,707.2,1.06108637]
[1735771832817,0.89309831,707.74,707.2,1.06108637]
[1735771833018,0.89309831,707.73,707.2,1.06108637]
[1735771833219,0.89309831,707.72,707.2,1.06108637]
[1735771833519,0.89309831,707.71,707.2,1.06108637]
[1735771833818,0.89309831,707.7,707.2,1.06108637]
[1735771834121,0.89309831,707.69,707.21,1.06108637]
[1735771834317,0.89309831,707.68,707.21,1.06108637]
[1735771834619,0.89309831,707.67,707.21,1.06108637]
[1735771834819,0.89309831,707.66,707.21,1.06108637]
[1735771835023,0.89309831,707.65,707.15,1.06108637]
[1735771835320,0.89309831,707.64,707.15,1.06108637]
[1735771835519,0.89309831,707.63,707.15,1.06108637]
[1735771835719,0.89309831,707.62,707.15,1.06108637]
[1735771835916,0.89309831,707.61,707.15,1.06108637]
[1735771836117,0.89309831,707.6,707.15,1.06108637]
[1735771836313,0.89309831,707.59,707.15,1.06108637]
[1735771836518,0.89309831,707.58,707.15,1.06108637]
[1735771836718,0.89309831,707.57,707.15,1.06108637]
[1735771836920,0.89309831,707.56,707.15,1.06108637]
[1735771837114,0.89309831,707.55,707.15,1.06108637]
[1735771837319,0.89309831,707.54,707.15,1.06108637]
[1735771837618,0.89309831,707.53,707.16,1.06108637]
[1735771837817,0.89309831,707.52,707.16,1.06108637]
[1735771838014,0.89309831,707.51,707.16,1.06108637]
[1735771838215,0.89309831,707.5,707.16,1.06108637]
[1735771838417,0.89309831,707.49,707.16,1.06108637]
[1735771838715,0.89309831,707.48,707.16,1.06108637]
[1735771838913,0.89309831,707.47,707.16,1.06108637]
[1735771839113,0.699,707.77,707.16,1.06108637]
[1735771839318,0.89309251,707.76,707.16,1.06108637]
[1735771839519,0.89309251,707.75,707.16,1.06108637]
[1735771839719,0.89309251,707.74,707.16,1.06108637]
[1735771839919,0.89309251,707.73,707.16,1.06108637]
[1735771840119,0.89309251,707.72,707.16,1.06108637]
[1735771840320,0.89309251,707.71,707.16,1.06108637]
[1735771840514,0.89309251,707.7,707.16,1.06108637]
[1735771840715,0.89309251,707.69,707.16,1.06108637]
[1735771840915,0.89309251,707.68,707.17,1.06108637]
[1735771841116,0.89309251,707.67,707.17,1.06108637]
[1735771841321,0.699,707.77,707.17,1.06108637]
[1735771841514,0.8931085,707.76,707.17,1.06108637]
[1735771841719,0.8931085,707.75,707.16,1.06108637]
[1735771841919,0.8931085,707.74,707.16,1.06108637]
[1735771842122,0.699,707.77,707.16,1.06108637]
[1735771842322,0.89310619,707.73,707.16,1.06108637]
[1735771842621,0.89310619,707.72,707.16,1.06108637]
[1735771842828,0.89310619,707.71,707.16,1.06108637]
[1735771843023,0.89310619,707.7,707.16,1.06108637]
[1735771843217,0.89310619,707.69,707.16,1.06108637]
[1735771843424,0.89310619,707.68,707.16,1.06108637]
[1735771843724,0.89310619,707.67,707.16,1.06108637]
[1735771843928,0.89310619,707.66,707.16,1.06108637]
[1735771844222,0.89310619,707.65,707.16,1.06108637]
[1735771844423,0.89310619,707.64,707.16,1.06108637]
[1735771844623,0.89310619,707.63,707.16,1.06108637]
[1735771844925,0.89310619,707.62,707.21,1.06108637]
[1735771845120,0.699,707.77,707.21,1.06108637]
[1735771845319,0.89311432,707.76,707.21,1.06108637]
[1735771845518,0.89311432,707.75,707.21,1.06108637]
[1735771845722,0.89311432,707.74,707.21,1.06108637]
[1735771846024,0.89311432,707.73,707.21,1.06108637]
[1735771846219,0.89311432,707.72,707.21,1.06108637]
[1735771846423,0.89311432,707.71,707.21,1.06108637]
[1735771846620,0.89311432,707.7,707.21,1.06108637]
[1735771846825,0.89311432,707.69,707.21,1.06108637]
[1735771847026,0.89311432,707.68,707.21,1.06108637]
[1735771847226,0.89311432,707.67,707.21,1.06108637]
[1735771847427,0.89311432,707.66,707.21,1.06108637]
[1735771847627,0.89311432,707.65,707.21,1.06108637]
[1735771847833,0.89311432,707.64,707.21,1.06108637]
[1735771848026,0.89311432,707.63,707.21,1.06108637]
[1735771848323,0.89314912,707.62,707.21,1.06108637]
[1735771848528,0.89314912,707.61,707.22,1.06108637]
[1735771848829,0.699,707.61,707.22,1.06108637]
[1735771849028,0.89316184,707.6,707.22,1.06108637]
[1735771849232,0.699,707.61,707.22,1.06108637]
[1735771849233,0.89316184,707.59,707.22,1.06108637]
[1735771849531,0.89316184,707.58,707.22,1.06108637]
[1735771849827,0.89316184,707.57,707.22,1.06108637]
[1735771850023,0.89316184,707.56,707.22,1.06108637]
[1735771850228,0.89316184,707.55,707.22,1.06108637]
[1735771850424,0.89316184,707.54,707.22,1.06108637]
[1735771850626,0.89320926,707.53,707.22,1.06108637]
[1735771850826,0.89320926,707.52,707.22,1.06108637]
[1735771851023,0.89320926,707.51,707.22,1.06108637]
[1735771851228,0.89320926,707.5,707.22,1.06108637]
[1735771851428,0.699,707.61,707.22,1.06108637]
[1735771851429,0.89320926,707.49,707.22,1.06108637]
[1735771851625,0.89320926,707.48,707.22,1.06108637]
[1735771851831,0.89320926,707.47,707.22,1.06108637]
[1735771852027,0.89320926,707.46,707.22,1.06108637]
[1735771852224,0.89320926,707.45,707.22,1.06108637]
[1735771852425,0.89320926,707.44,707.21,1.06108637]
[1735771852629,0.89320926,707.43,707.21,1.06108637]
[1735771852825,0.89320926,707.42,707.21,1.06108637]
[1735771853026,0.89320926,707.41,707.21,1.06108637]
[1735771853229,0.89320926,707.4,707.21,1.06108637]
[1735771853425,0.89320926,707.39,707.21,1.06108637]
[1735771853629,0.89320926,707.38,707.19,1.06108637]
[1735771853832,0.89320926,707.37,707.19,1.06108637]
[1735771854024,0.89320926,707.36,707.19,1.06108637]
[1735771854229,0.89320926,707.35,707.19,1.06108637]
[1735771854429,0.699,707.61,707.19,1.06108637]
[1735771854627,0.89333843,707.6,707.19,1.06108637]
[1735771854831,0.89333843,707.59,707.18,1.06108637]
[1735771855028,0.89333843,707.58,707.18,1.06108637]
[1735771855231,0.89333843,707.57,707.18,1.06108637]
[1735771855434,0.89333843,707.56,707.18,1.06108637]
[1735771855634,0.89333843,707.55,707.18,1.06108637]
[1735771855933,0.89333843,707.54,707.18,1.06108637]
[1735771856134,0.89333843,707.53,707.18,1.06108637]
[1735771856333,0.89333843,707.52,707.18,1.06108637]
[1735771856633,0.699,707.61,707.2,1.06108637]
[1735771856634,0.89333843,707.51,707.2,1.06108637]
[1735771856836,0.89333843,707.5,707.2,1.06108637]
[1735771857034,0.89333843,707.49,707.2,1.06108637]
[1735771857233,0.89333843,707.48,707.2,1.06108637]
[1735771857425,0.699,707.61,707.2,1.06108637]
[1735771857628,0.89345513,707.6,707.2,1.06108637]
[1735771857929,0.89345513,707.59,707.2,1.06108637]
[1735771858133,0.89345513,707.58,707.2,1.06108637]
[1735771858430,0.89345513,707.57,707.14,1.06108637]
[1735771858629,0.89345513,707.56,707.14,1.06108637]
[1735771858832,0.89345513,707.55,707.14,1.06108637]
[1735771859031,0.89345513,707.54,707.14,1.06108637]
[1735771859233,0.89345513,707.53,707.14,1.06108637]
[1735771859436,0.89345513,707.52,707.11,1.06108637]
[1735771859635,0.89345513,707.51,707.11,1.06108637]
[1735771859936,0.89345513,707.5,707.11,1.06108637]
[1735771860136,0.89345513,707.49,707.11,1.06108637]
[1735771860333,0.89345513,707.48,707.11,1.06108637]
[1735771860532,0.699,707.61,707.11,1.06108637]
[1735771860741,0.89351262,707.6,707.11,1.06108637]
[1735771860934,0.89351262,707.59,707.1,1.06108637]
[1735771861232,0.89351262,707.58,707.1,1.06108637]
[1735771861436,0.89351262,707.57,707.1,1.06108637]
[1735771861637,0.89351262,707.56,707.1,1.06108637]
[1735771861838,0.699,707.61,707.09,1.06108637]
[1735771861839,0.89351262,707.55,707.09,1.06108637]
[1735771862139,0.699,707.61,707.09,1.06108637]
[1735771862140,0.89351262,707.54,707.09,1.06108637]
[1735771862338,0.89351262,707.53,707.09,1.06108637]
[1735771862536,0.89351262,707.52,707.09,1.06108637]
[1735771862734,0.89351262,707.51,707.09,1.06108637]
[1735771862935,0.89351262,707.5,707.1,1.06108637]
[1735771863139,0.89351262,707.49,707.1,1.06108637]
[1735771863340,0.89351262,707.48,707.1,1.06108637]
[1735771863640,0.89351262,707.47,707.1,1.06108637]
[1735771863843,0.89351262,707.46,707.1,1.06108637]
[1735771864039,0.89351262,707.45,707.1,1.06108637]
[1735771864240,0.89351262,707.44,707.1,1.06108637]
[1735771864540,0.89351262,707.44,706.59,0.73368635]
[1735771864541,0.89351262,707.43,707.11,1.06108637]
[1735771864739,0.89351262,707.42,707.11,1.06108637]
[1735771864937,0.699,707.61,707.11,1.06108637]
[1735771864938,0.89351262,707.41,707.11,1.06108637]
[1735771865137,0.89351262,707.4,707.11,1.06108637]
[1735771865334,0.89351262,707.39,707.11,1.06108637]
[1735771865638,0.89351262,707.39,706.59,0.73368635]
[1735771865639,0.89351262,707.38,707.08,1.06108637]
[1735771865838,0.89351262,707.37,707.08,1.06108637]
[1735771866039,0.89351262,707.36,707.08,1.06108637]
[1735771866335,0.699,707.61,707.08,1.06108637]
[1735771866542,0.89329383,707.35,707.08,1.06108637]
[1735771866742,0.89325948,707.34,707.08,1.06108637]
[1735771866942,0.89325948,707.33,707.08,1.06108637]
[1735771867242,0.89325948,707.32,707.08,1.06108637]
[1735771867542,0.89325948,707.31,707.07,1.06108637]
[1735771867736,0.89325948,707.3,707.07,1.06108637]
[1735771867940,0.89325948,707.29,707.07,1.06108637]
[1735771868139,0.699,707.61,707.07,1.06108637]
[1735771868340,0.89322422,707.6,707.09,1.06108637]
[1735771868540,0.89322422,707.59,707.09,1.06108637]
[1735771868740,0.89322422,707.58,707.09,1.06108637]
[1735771868941,0.89319135,707.57,707.09,1.06108637]
[1735771869242,0.89319135,707.56,707.09,1.06108637]
[1735771869542,0.89319135,707.55,707.09,1.06108637]
[1735771869736,0.89319135,707.54,707.09,1.06108637]
[1735771869937,0.89319135,707.53,707.09,1.06108637]
[1735771870239,0.699,707.61,707.1,1.06108637]
[1735771870240,0.89319135,707.52,707.1,1.06108637]
[1735771870438,0.89319135,707.51,707.1,1.06108637]
[1735771870641,0.699,707.61,707.1,1.06108637]
[1735771870642,0.89319135,707.5,707.1,1.06108637]
[1735771870941,0.89319135,707.49,707.1,1.06108637]
[1735771871145,0.89319135,707.48,707.09,1.06108637]
[1735771871438,0.89319135,707.47,707.09,1.06108637]
[1735771871646,0.89319135,707.46,707.09,1.06108637]
[1735771871847,1.59219135,707.45,707.09,1.06108637]
[1735771872042,0.89311004,707.44,707.09,1.06108637]
[1735771872243,0.89311004,707.43,707.1,1.06108637]
[1735771872442,0.89311004,707.42,707.1,1.06108637]
[1735771872643,0.89311004,707.41,707.1,1.06108637]
[1735771872839,0.699,707.45,707.1,1.06108637]
[1735771872840,0.89311004,707.4,707.1,1.06108637]
[1735771873045,0.89311004,707.39,707.1,1.06108637]
[1735771873347,0.89311004,707.38,707.1,1.06108637]
[1735771873544,0.89311004,707.37,707.1,1.06108637]
[1735771873738,0.89311004,707.36,707.1,1.06108637]
[1735771873941,0.89311004,707.35,707.1,1.06108637]
[1735771874143,0.89311004,707.34,707.1,1.06108637]
[1735771874344,0.89311004,707.33,707.1,1.06108637]
[1735771874545,0.89311004,707.32,707.1,1.06108637]
[1735771874746,0.89311004,707.31,707.09,1.06108637]
[1735771874940,0.89311004,707.3,707.09,1.06108637]
[1735771875144,0.89311004,707.29,707.09,1.06108637]
[1735771875342,0.89311004,707.28,707.09,1.06108637]
[1735771875546,0.89311004,707.27,707.09,1.06108637]
[1735771875848,0.89311004,707.26,707.1,1.06108637]
[1735771876046,0.89311004,707.25,707.1,1.06108637]
[1735771876247,0.89311004,707.24,707.1,1.06108637]
[1735771876440,0.699,707.45,707.1,1.06108637]
[1735771876645,0.89301623,707.44,707.1,1.06108637]
[1735771876846,0.89301623,707.43,707.1,1.06108637]
[1735771877042,0.89301623,707.42,707.1,1.06108637]
[1735771877345,0.89301623,707.41,707.1,1.06108637]
[1735771877542,0.89301623,707.4,707.1,1.06108637]
[1735771877849,0.89301623,707.39,707.1,1.06108637]
[1735771878046,0.699,707.45,707.1,1.06108637]
[1735771878246,0.89299848,707.44,707.12,1.06108637]
[1735771878548,0.89299848,707.43,707.12,1.06108637]
[1735771878749,0.89299848,707.42,707.12,1.06108637]
[1735771879048,0.89299848,707.41,707.12,1.06108637]
[1735771879250,0.89299848,707.4,707.12,1.06108637]
[1735771879450,0.89299848,707.39,707.12,1.06108637]
[1735771879650,0.89299848,707.38,707.12,1.06108637]
[1735771879848,0.89299848,707.37,707.12,1.06108637]
[1735771880049,0.89299848,707.36,707.12,1.06108637]
[1735771880349,0.89299848,707.35,707.12,1.06108637]
[1735771880555,0.699,707.45,707.05,1.06108637]
[1735771880556,0.89299848,707.34,707.05,1.06108637]
[1735771880855,0.89299848,707.33,707.05,1.06108637]
[1735771881049,0.699,707.45,707.05,1.06108637]
[1735771881249,0.89297001,707.44,707.05,1.06108637]
[1735771881450,0.89297001,707.43,707.06,1.06108637]
[1735771881755,0.89297001,707.42,707.06,1.06108637]
[1735771881956,0.89297001,707.41,707.06,1.06108637]
[1735771882155,0.89297001,707.4,707.06,1.06108637]
[1735771882349,0.89297001,707.39,707.06,1.06108637]
[1735771882553,0.89297001,707.38,707.05,1.06108637]
[1735771882752,0.89297001,707.37,707.05,1.06108637]
[1735771882954,0.89297001,707.36,707.05,1.06108637]
[1735771883149,0.89297001,707.35,707.05,1.06108637]
[1735771883353,0.89297001,707.34,707.05,1.06108637]
[1735771883553,0.89297001,707.33,707.05,1.06108637]
[1735771883757,0.89297001,707.32,707.02,1.06108637]
[1735771883954,0.699,707.45,707.02,1.06108637]
[1735771883955,0.89297001,707.31,707.02,1.06108637]
[1735771884150,0.89295393,707.3,707.02,1.06108637]
[1735771884351,0.89295393,707.29,707.02,1.06108637]
[1735771884555,0.699,707.45,707.02,1.06108637]
[1735771884750,0.89295696,707.44,707.02,1.06108637]
[1735771884956,0.89295696,707.43,707.04,1.06108637]
[1735771885251,0.89295696,707.42,707.04,1.06108637]
[1735771885450,0.89295696,707.41,707.04,1.06108637]
[1735771885649,0.89295696,707.4,707.04,1.06108637]
[1735771885956,0.89295696,707.39,707.04,1.06108637]
[1735771886156,0.89295696,707.38,707.04,1.06108637]
[1735771886456,0.89295696,707.37,707.04,1.06108637]
[1735771886660,0.89295696,707.36,707.04,1.06108637]
[1735771886855,0.89295696,707.35,707.04,1.06108637]
[1735771887053,0.89295696,707.34,707.04,1.06108637]
[1735771887255,0.89297526,707.33,707.04,1.06108637]
[1735771887454,0.89297526,707.32,707.04,1.06108637]
[1735771887759,0.89297526,707.31,707.04,1.06108637]
[1735771887950,0.89297526,707.3,707.04,1.06108637]
[1735771888154,0.89297526,707.29,707.04,1.06108637]
[1735771888355,0.89297526,707.28,707.04,1.06108637]
[1735771888655,0.89297526,707.27,707.04,1.06108637]
[1735771888853,0.89297526,707.26,707.04,1.06108637]
[1735771889053,0.89297526,707.25,707.04,1.06108637]
[1735771889251,0.699,707.45,707.04,1.06108637]
[1735771889456,0.8929879,707.44,707.04,1.06108637]
[1735771889657,0.8929879,707.43,707.08,1.06108637]
[1735771889855,0.8929879,707.42,707.08,1.06108637]
[1735771890056,0.8929879,707.41,707.08,1.06108637]
[1735771890257,0.89299411,707.4,707.08,1.06108637]
[1735771890453,0.89299411,707.39,707.08,1.06108637]
[1735771890759,0.89299411,707.38,707.09,1.06108637]
[1735771891058,0.89299411,707.37,707.09,1.06108637]
[1735771891258,0.89299411,707.36,707.09,1.06108637]
[1735771891455,0.89299411,707.35,707.09,1.06108637]
[1735771891652,0.89299411,707.34,707.09,1.06108637]
[1735771891857,0.89299411,707.33,707.08,1.06108637]
[1735771892066,1.59299411,707.32,707.08,1.06108637]
[1735771892254,0.89299411,707.31,707.08,1.06108637]
[1735771892454,0.89299411,707.3,707.08,1.06108637]
[1735771892652,0.89299411,707.29,707.08,1.06108637]
[1735771892954,0.89299411,707.28,707.08,1.06108637]
[1735771893158,0.7,707.32,707.08,1.06108637]
[1735771893358,0.89300233,707.31,707.08,1.06108637]
[1735771893553,0.89300233,707.3,707.08,1.06108637]
[1735771893753,0.7,707.32,707.08,1.06108637]
[1735771893962,0.89299811,707.31,707.08,1.06108637]
[1735771894161,0.89299811,707.3,707.15,1.06108637]
[1735771894358,0.89299811,707.29,707.15,1.06108637]
[1735771894559,0.89299811,707.28,707.15,1.06108637]
[1735771894755,0.7,707.32,707.15,1.06108637]
[1735771894756,0.89299811,707.27,707.15,1.06108637]
[1735771894954,0.89299811,707.26,707.15,1.06108637]
[1735771895153,0.89299811,707.25,707.15,1.06108637]
[1735771895356,0.89299811,707.24,707.14,1.06108637]
[1735771895560,0.89299811,707.23,707.14,1.06108637]
[1735771895760,0.7,707.32,707.14,1.06108637]
[1735771895961,0.89298141,707.31,707.14,1.06108637]
[1735771896258,0.89297754,707.3,707.14,1.06108637]
[1735771896461,0.89297754,707.29,707.15,1.06108637]
[1735771896660,0.89297754,707.28,707.15,1.06108637]
[1735771896854,0.7,707.32,707.15,1.06108637]
[1735771896855,0.89297754,707.27,707.15,1.06108637]
[1735771897058,0.89297754,707.26,707.15,1.06108637]
[1735771897256,0.89297754,707.25,707.11,1.06108637]